[Event "Titled Tuesday Blitz March 22 Late 2022"]
[White "Almagro Mazariegos, Sebastian"]
[Black "Manukyan, Sargis A."]
[WhiteFideId "2221640"]
[BlackFideId "13303970"]
[WhiteElo "2273"]
[BlackElo "2187"]
[Result "1-0"]
[Round "07"]
[TimeControl "180+1"]
[Date "2022.03.22"]
[WhiteClock "0:00:02"]
[BlackClock "0:00:10"]

1. e4 {[%clk 0:03:00]}  c5 {[%clk 0:02:59]} 2. Nf3 {[%clk 0:03:00]}  d6 {[%clk 0:03:00]} 3. d4 {[%clk 0:03:01]}  cxd4 {[%clk 0:03:01]} 4. Nxd4 {[%clk 0:03:01]}  Nf6 {[%clk 0:03:01]} 5. Nc3 {[%clk 0:03:01]}  g6 {[%clk 0:03:02]} 6. f3 {[%clk 0:03:01]}  Bg7 {[%clk 0:03:03]} 7. Be3 {[%clk 0:03:02]}  O-O {[%clk 0:03:03]} 8. Qd2 {[%clk 0:03:03]}  Nc6 {[%clk 0:03:04]} 9. O-O-O {[%clk 0:03:03]}  d5 {[%clk 0:03:04]} 10. exd5 {[%clk 0:03:03]}  Nxd5 {[%clk 0:03:05]} 11. Nxc6 {[%clk 0:03:04]}  bxc6 {[%clk 0:03:06]} 12. Bd4 {[%clk 0:03:04]}  e5 {[%clk 0:03:06]} 13. Bc5 {[%clk 0:03:04]}  Be6 {[%clk 0:03:07]} 14. Ne4 {[%clk 0:03:04]}  Re8 {[%clk 0:03:07]} 15. c4 {[%clk 0:03:01]}  Nf4 {[%clk 0:03:04]} 16. Qxd8 {[%clk 0:02:57]}  Rexd8 {[%clk 0:03:05]} 17. Rxd8+ {[%clk 0:02:53]}  Rxd8 {[%clk 0:03:06]} 18. Kc2 {[%clk 0:02:53]}  h6 {[%clk 0:02:56]} 19. g3 {[%clk 0:02:39]}  f5 {[%clk 0:02:40]} 20. Nf2 {[%clk 0:02:17]}  Nh5 {[%clk 0:02:36]} 21. Be2 {[%clk 0:02:17]}  Nf6 {[%clk 0:02:13]} 22. Rd1 {[%clk 0:02:00]}  Nd7 {[%clk 0:02:12]} 23. Bxa7 {[%clk 0:01:45]}  Ra8 {[%clk 0:02:11]} 24. Be3 {[%clk 0:01:44]}  Rxa2 {[%clk 0:01:57]} 25. Rd6 {[%clk 0:01:34]}  Kf7 {[%clk 0:01:55]} 26. Rxc6 {[%clk 0:01:30]}  f4 {[%clk 0:01:54]} 27. Bc1 {[%clk 0:01:21]}  g5 {[%clk 0:01:13]} 28. Ne4 {[%clk 0:01:12]}  Ra7 {[%clk 0:01:00]} 29. g4 {[%clk 0:01:06]}  Nf6 {[%clk 0:01:00]} 30. Nxf6 {[%clk 0:01:01]}  Bxf6 {[%clk 0:01:01]} 31. Bd3 {[%clk 0:01:00]}  Bd7 {[%clk 0:00:56]} 32. Rb6 {[%clk 0:00:53]}  Rc7 {[%clk 0:00:50]} 33. b3 {[%clk 0:00:51]}  Bc6 {[%clk 0:00:51]} 34. Be4 {[%clk 0:00:39]}  Bxe4+ {[%clk 0:00:46]} 35. fxe4 {[%clk 0:00:40]}  h5 {[%clk 0:00:47]} 36. h3 {[%clk 0:00:39]}  hxg4 {[%clk 0:00:47]} 37. hxg4 {[%clk 0:00:39]}  Be7 {[%clk 0:00:44]} 38. Kd3 {[%clk 0:00:31]}  Bc5 {[%clk 0:00:43]} 39. Rh6 {[%clk 0:00:24]}  Kg7 {[%clk 0:00:38]} 40. Re6 {[%clk 0:00:22]}  Bd4 {[%clk 0:00:20]} 41. Ba3 {[%clk 0:00:21]}  Kf7 {[%clk 0:00:19]} 42. Rh6 {[%clk 0:00:15]}  Kg7 {[%clk 0:00:18]} 43. Re6 {[%clk 0:00:15]}  Rc8 {[%clk 0:00:17]} 44. Bd6 {[%clk 0:00:13]}  Rd8 {[%clk 0:00:14]} 45. c5 {[%clk 0:00:12]}  Kf7 {[%clk 0:00:12]} 46. Re7+ {[%clk 0:00:10]}  Kf6 {[%clk 0:00:13]} 47. b4 {[%clk 0:00:10]}  Ra8 {[%clk 0:00:13]} 48. c6 {[%clk 0:00:09]}  Ra3+ {[%clk 0:00:13]} 49. Kc4 {[%clk 0:00:09]}  f3 {[%clk 0:00:12]} 50. Re8 {[%clk 0:00:09]}  f2 {[%clk 0:00:09]} 51. Kd5 {[%clk 0:00:05]}  Kg7 {[%clk 0:00:04]} 52. Rf8 {[%clk 0:00:05]}  Be3 {[%clk 0:00:03]} 53. Rf5 {[%clk 0:00:04]}  Bf4 {[%clk 0:00:03]} 54. Bxe5+ {[%clk 0:00:05]}  Bxe5 {[%clk 0:00:02]} 55. Rxg5+ {[%clk 0:00:04]}  Kf7 {[%clk 0:00:02]} 56. Rf5+ {[%clk 0:00:05]}  Bf6 {[%clk 0:00:03]} 57. g5 {[%clk 0:00:05]}  Rd3+ {[%clk 0:00:04]} 58. Kc4 {[%clk 0:00:04]}  Rd2 {[%clk 0:00:04]} 59. Rxf6+ {[%clk 0:00:04]}  Ke7 {[%clk 0:00:05]} 60. b5 {[%clk 0:00:04]}  Rc2+ {[%clk 0:00:05]} 61. Kb4 {[%clk 0:00:04]}  Re2 {[%clk 0:00:05]} 62. Kc5 {[%clk 0:00:04]}  Rc2+ {[%clk 0:00:05]} 63. Kb6 {[%clk 0:00:04]}  Re2 {[%clk 0:00:05]} 64. Rf4 {[%clk 0:00:03]}  Rc2 {[%clk 0:00:04]} 65. c7 {[%clk 0:00:03]}  Kd7 {[%clk 0:00:05]} 66. g6 {[%clk 0:00:02]}  Kd6 {[%clk 0:00:03]} 67. g7 {[%clk 0:00:02]}  Rxc7 {[%clk 0:00:03]} 68. Rf6+ {[%clk 0:00:02]}  Ke5 {[%clk 0:00:03]} 69. Rxf2 {[%clk 0:00:03]}  Rxg7 {[%clk 0:00:02]} 70. Re2 {[%clk 0:00:02]}  Rg6+ {[%clk 0:00:02]} 71. Ka5 {[%clk 0:00:03]}  Rg7 {[%clk 0:00:03]} 72. b6 {[%clk 0:00:03]}  Kd6 {[%clk 0:00:03]} 73. Ka6 {[%clk 0:00:04]}  Kd7 {[%clk 0:00:03]} 74. Rc2 {[%clk 0:00:03]}  Rg6 {[%clk 0:00:03]} 75. Ka7 {[%clk 0:00:03]}  Rg3 {[%clk 0:00:03]} 76. b7 {[%clk 0:00:03]}  Ra3+ {[%clk 0:00:04]} 77. Kb6 {[%clk 0:00:03]}  Rb3+ {[%clk 0:00:04]} 78. Ka6 {[%clk 0:00:04]}  Ra3+ {[%clk 0:00:04]} 79. Kb5 {[%clk 0:00:04]}  Rb3+ {[%clk 0:00:05]} 80. Ka6 {[%clk 0:00:03]}  Ra3+ {[%clk 0:00:05]} 81. Kb6 {[%clk 0:00:04]}  Rb3+ {[%clk 0:00:05]} 82. Ka7 {[%clk 0:00:04]}  Ra3+ {[%clk 0:00:06]} 83. Kb8 {[%clk 0:00:05]}  Ra4 {[%clk 0:00:05]} 84. Rd2+ {[%clk 0:00:05]}  Kc6 {[%clk 0:00:05]} 85. Kc8 {[%clk 0:00:04]}  Rxe4 {[%clk 0:00:03]} 86. b8=Q {[%clk 0:00:04]}  Re8+ {[%clk 0:00:04]} 87. Rd8 {[%clk 0:00:04]}  Re7 {[%clk 0:00:05]} 88. Qa8+ {[%clk 0:00:03]}  Kc5 {[%clk 0:00:05]} 89. Qa5+ {[%clk 0:00:03]}  Kc6 {[%clk 0:00:05]} 90. Qa4+ {[%clk 0:00:02]}  Kb6 {[%clk 0:00:05]} 91. Qb4+ {[%clk 0:00:02]}  Kc6 {[%clk 0:00:03]} 92. Qxe7 {[%clk 0:00:01]}  Kb5 {[%clk 0:00:04]} 93. Rd6 {[%clk 0:00:01]}  Kc4 {[%clk 0:00:05]} 94. Qe5 {[%clk 0:00:01]}  Kb3 {[%clk 0:00:06]} 95. Rd4 {[%clk 0:00:01]}  Kc2 {[%clk 0:00:07]} 96. Rh4 {[%clk 0:00:01]}  Kb1 {[%clk 0:00:08]} 97. Qg5 {[%clk 0:00:01]}  Kc2 {[%clk 0:00:09]} 98. Qg3 {[%clk 0:00:01]}  Kb2 {[%clk 0:00:10]} 99. Rh2+ {[%clk 0:00:02]}  Ka1 {[%clk 0:00:10]} 100. Qg1# {[%clk 0:00:02]} 1-0


[Site "https://www.chess.com"]

[Event "Titled Tuesday Blitz March 22 Late 2022"]
[White "Andreikin, Dmitry"]
[Black "Matinian, Nikita"]
[WhiteFideId "4158814"]
[BlackFideId "24129100"]
[WhiteElo "2736"]
[BlackElo "2422"]
[Result "1-0"]
[Round "07"]
[TimeControl "180+1"]
[Date "2022.03.22"]
[WhiteClock "0:00:21"]
[BlackClock "0:00:02"]

1. d4 {[%clk 0:03:00]}  Nf6 {[%clk 0:02:59]} 2. Nf3 {[%clk 0:03:00]}  g6 {[%clk 0:02:59]} 3. b3 {[%clk 0:03:01]}  Bg7 {[%clk 0:02:58]} 4. Bb2 {[%clk 0:03:01]}  c5 {[%clk 0:02:57]} 5. dxc5 {[%clk 0:03:01]}  Qa5+ {[%clk 0:02:56]} 6. Nbd2 {[%clk 0:03:01]}  Qxc5 {[%clk 0:02:57]} 7. e3 {[%clk 0:03:01]}  O-O {[%clk 0:02:56]} 8. c4 {[%clk 0:03:01]}  Nc6 {[%clk 0:02:54]} 9. Be2 {[%clk 0:03:00]}  d5 {[%clk 0:02:51]} 10. O-O {[%clk 0:02:58]}  Rd8 {[%clk 0:02:48]} 11. Rc1 {[%clk 0:02:58]}  Bf5 {[%clk 0:02:28]} 12. a3 {[%clk 0:02:54]}  a5 {[%clk 0:02:28]} 13. Nd4 {[%clk 0:02:39]}  e6 {[%clk 0:01:42]} 14. cxd5 {[%clk 0:01:58]}  Qxd5 {[%clk 0:01:43]} 15. Bf3 {[%clk 0:01:58]}  Qd6 {[%clk 0:01:08]} 16. Nc4 {[%clk 0:01:50]}  Qf8 {[%clk 0:00:54]} 17. Bxc6 {[%clk 0:01:37]}  bxc6 {[%clk 0:00:52]} 18. Qe2 {[%clk 0:01:37]}  c5 {[%clk 0:00:46]} 19. Nxf5 {[%clk 0:01:36]}  exf5 {[%clk 0:00:47]} 20. Bc3 {[%clk 0:01:27]}  a4 {[%clk 0:00:45]} 21. Ba5 {[%clk 0:01:26]}  Rdb8 {[%clk 0:00:21]} 22. bxa4 {[%clk 0:01:26]}  Ne4 {[%clk 0:00:21]} 23. Qc2 {[%clk 0:01:26]}  Ra6 {[%clk 0:00:15]} 24. Rfd1 {[%clk 0:01:19]}  h5 {[%clk 0:00:14]} 25. Be1 {[%clk 0:01:17]}  h4 {[%clk 0:00:13]} 26. h3 {[%clk 0:01:16]}  Qe7 {[%clk 0:00:12]} 27. a5 {[%clk 0:01:16]}  Bh6 {[%clk 0:00:08]} 28. Rb1 {[%clk 0:01:13]}  Re8 {[%clk 0:00:06]} 29. Rb6 {[%clk 0:01:12]}  Raa8 {[%clk 0:00:06]} 30. Qe2 {[%clk 0:00:56]}  f4 {[%clk 0:00:06]} 31. exf4 {[%clk 0:00:56]}  Bxf4 {[%clk 0:00:04]} 32. Qg4 {[%clk 0:00:55]}  g5 {[%clk 0:00:04]} 33. Rd7 {[%clk 0:00:49]}  Nxf2 {[%clk 0:00:02]} 34. Bxf2 {[%clk 0:00:33]}  Qe4 {[%clk 0:00:02]} 35. Nd6 {[%clk 0:00:23]}  Qc2 {[%clk 0:00:02]} 36. Nxe8 {[%clk 0:00:22]}  Qc1+ {[%clk 0:00:02]} 37. Rd1 {[%clk 0:00:21]} 1-0


[Site "https://www.chess.com"]

[Event "Titled Tuesday Blitz March 22 Late 2022"]
[White "Ansh M Shah"]
[Black "Perera Alfonso, Rene Humberto"]
[WhiteFideId "25033379"]
[BlackFideId "3514722"]
[WhiteElo "1819"]
[BlackElo "2313"]
[Result "0-1"]
[Round "07"]
[TimeControl "180+1"]
[Date "2022.03.22"]
[WhiteClock "0:00:01"]
[BlackClock "0:00:54"]

1. d4 {[%clk 0:03:00]}  d5 {[%clk 0:02:59]} 2. c4 {[%clk 0:03:01]}  c6 {[%clk 0:02:59]} 3. cxd5 {[%clk 0:03:01]}  cxd5 {[%clk 0:03:00]} 4. Nc3 {[%clk 0:02:47]}  Nf6 {[%clk 0:03:00]} 5. Bf4 {[%clk 0:02:47]}  Nc6 {[%clk 0:02:59]} 6. Nf3 {[%clk 0:02:47]}  Bf5 {[%clk 0:02:59]} 7. e3 {[%clk 0:02:47]}  e6 {[%clk 0:02:58]} 8. Qb3 {[%clk 0:02:47]}  Bb4 {[%clk 0:02:58]} 9. Bb5 {[%clk 0:02:45]}  O-O {[%clk 0:02:58]} 10. O-O {[%clk 0:02:42]}  Bxc3 {[%clk 0:02:58]} 11. Qxc3 {[%clk 0:02:37]}  Rc8 {[%clk 0:02:57]} 12. Rac1 {[%clk 0:02:26]}  Ne4 {[%clk 0:02:54]} 13. Qa3 {[%clk 0:02:12]}  Qb6 {[%clk 0:02:46]} 14. Bxc6 {[%clk 0:02:07]}  Rxc6 {[%clk 0:02:47]} 15. Rxc6 {[%clk 0:02:03]}  bxc6 {[%clk 0:02:46]} 16. Ne5 {[%clk 0:02:00]}  Qb7 {[%clk 0:02:41]} 17. Rc1 {[%clk 0:01:52]}  Rc8 {[%clk 0:02:40]} 18. Nd3 {[%clk 0:01:46]}  g5 {[%clk 0:02:26]} 19. Bg3 {[%clk 0:01:40]}  Qb5 {[%clk 0:02:24]} 20. Nc5 {[%clk 0:01:15]}  Nxg3 {[%clk 0:02:16]} 21. hxg3 {[%clk 0:01:13]}  Rb8 {[%clk 0:02:15]} 22. b3 {[%clk 0:00:32]}  a5 {[%clk 0:02:08]} 23. g4 {[%clk 0:00:24]}  Bg6 {[%clk 0:02:07]} 24. Nd7 {[%clk 0:00:22]}  Rc8 {[%clk 0:01:29]} 25. Qe7 {[%clk 0:00:08]}  h6 {[%clk 0:01:28]} 26. Ne5 {[%clk 0:00:07]}  Kg7 {[%clk 0:01:04]} 27. Nxg6 {[%clk 0:00:06]}  Kxg6 {[%clk 0:01:05]} 28. Rc5 {[%clk 0:00:05]}  Qe2 {[%clk 0:01:00]} 29. Qd7 {[%clk 0:00:01]}  Rf8 {[%clk 0:00:59]} 30. Rxc6 {[%clk 0:00:01]}  Qe1+ {[%clk 0:00:57]} 31. Kh2 {[%clk 0:00:01]}  Qxf2 {[%clk 0:00:56]} 32. Qd6 {[%clk 0:00:01]}  Kg7 {[%clk 0:00:54]} 33. Qe5+ {[%clk 0:00:01]}  Kg8 {[%clk 0:00:54]} 0-1


[Site "https://www.chess.com"]

[Event "Titled Tuesday Blitz March 22 Late 2022"]
[White "Antonio, Jorge Carlos"]
[Black "Dolzhykova, Kateryna"]
[WhiteFideId "113190"]
[BlackFideId "14113414"]
[WhiteElo "2247"]
[BlackElo "2184"]
[Result "0-1"]
[Round "07"]
[TimeControl "180+1"]
[Date "2022.03.22"]
[WhiteClock "0:00:35"]
[BlackClock "0:00:47"]

1. d4 {[%clk 0:03:00]}  Nf6 {[%clk 0:02:56]} 2. Nf3 {[%clk 0:03:01]}  g6 {[%clk 0:02:54]} 3. c4 {[%clk 0:03:01]}  Bg7 {[%clk 0:02:55]} 4. Nc3 {[%clk 0:03:01]}  d5 {[%clk 0:02:51]} 5. Bg5 {[%clk 0:03:00]}  c5 {[%clk 0:02:52]} 6. Bxf6 {[%clk 0:02:59]}  Bxf6 {[%clk 0:02:51]} 7. Nxd5 {[%clk 0:02:59]}  O-O {[%clk 0:02:49]} 8. Nxf6+ {[%clk 0:02:59]}  exf6 {[%clk 0:02:49]} 9. e3 {[%clk 0:02:59]}  Bg4 {[%clk 0:02:46]} 10. d5 {[%clk 0:02:58]}  Nd7 {[%clk 0:02:44]} 11. Be2 {[%clk 0:02:58]}  Qa5+ {[%clk 0:02:36]} 12. Qd2 {[%clk 0:02:56]}  Qxd2+ {[%clk 0:02:26]} 13. Kxd2 {[%clk 0:02:56]}  Bxf3 {[%clk 0:02:19]} 14. gxf3 {[%clk 0:02:53]}  Ne5 {[%clk 0:02:20]} 15. f4 {[%clk 0:02:52]}  Nd7 {[%clk 0:02:20]} 16. h4 {[%clk 0:02:52]}  f5 {[%clk 0:02:20]} 17. h5 {[%clk 0:02:51]}  Nf6 {[%clk 0:02:21]} 18. Bf3 {[%clk 0:02:48]}  Rfd8 {[%clk 0:02:20]} 19. hxg6 {[%clk 0:02:47]}  hxg6 {[%clk 0:02:13]} 20. a4 {[%clk 0:02:44]}  b6 {[%clk 0:02:12]} 21. Rh2 {[%clk 0:02:42]}  Rab8 {[%clk 0:02:12]} 22. Rah1 {[%clk 0:02:40]}  Kg7 {[%clk 0:02:11]} 23. Ra1 {[%clk 0:02:38]}  a6 {[%clk 0:02:11]} 24. Kc3 {[%clk 0:02:34]}  b5 {[%clk 0:02:10]} 25. axb5 {[%clk 0:02:34]}  axb5 {[%clk 0:02:11]} 26. b3 {[%clk 0:02:29]}  Rd6 {[%clk 0:02:00]} 27. Rhh1 {[%clk 0:02:25]}  Rdb6 {[%clk 0:01:57]} 28. Ra5 {[%clk 0:01:48]}  bxc4 {[%clk 0:01:55]} 29. Rxc5 {[%clk 0:01:25]}  Rxb3+ {[%clk 0:01:51]} 30. Kd4 {[%clk 0:01:11]}  Rb2 {[%clk 0:01:45]} 31. Rxc4 {[%clk 0:01:06]}  Rxf2 {[%clk 0:01:43]} 32. Rh3 {[%clk 0:01:02]}  Rbb2 {[%clk 0:01:38]} 33. Ke5 {[%clk 0:01:00]}  Rb3 {[%clk 0:01:01]} 34. e4 {[%clk 0:00:51]}  Rfxf3 {[%clk 0:00:52]} 35. Rxf3 {[%clk 0:00:43]}  Rxf3 {[%clk 0:00:53]} 36. exf5 {[%clk 0:00:43]}  Rd3 {[%clk 0:00:49]} 37. d6 {[%clk 0:00:35]}  Rd5# {[%clk 0:00:47]} 0-1


[Site "https://www.chess.com"]

[Event "Titled Tuesday Blitz March 22 Late 2022"]
[White "Aravindh, Chithambaram VR."]
[Black "Grischuk, Alexander"]
[WhiteFideId "5072786"]
[BlackFideId "4126025"]
[WhiteElo "2561"]
[BlackElo "2762"]
[Result "1/2-1/2"]
[Round "07"]
[TimeControl "180+1"]
[Date "2022.03.22"]
[WhiteClock "0:00:06"]
[BlackClock "0:00:09"]

1. b3 {[%clk 0:02:59]}  e5 {[%clk 0:02:59]} 2. Bb2 {[%clk 0:03:00]}  Nc6 {[%clk 0:02:59]} 3. e3 {[%clk 0:03:00]}  d5 {[%clk 0:03:00]} 4. Bb5 {[%clk 0:02:59]}  Bd6 {[%clk 0:03:00]} 5. f4 {[%clk 0:02:59]}  f6 {[%clk 0:02:59]} 6. Nc3 {[%clk 0:02:50]}  a6 {[%clk 0:02:55]} 7. Bxc6+ {[%clk 0:02:47]}  bxc6 {[%clk 0:02:56]} 8. Nf3 {[%clk 0:02:47]}  e4 {[%clk 0:02:48]} 9. Nd4 {[%clk 0:02:46]}  Qd7 {[%clk 0:02:39]} 10. Qh5+ {[%clk 0:02:27]}  g6 {[%clk 0:02:38]} 11. Qh4 {[%clk 0:02:27]}  Bb7 {[%clk 0:02:24]} 12. f5 {[%clk 0:02:21]}  c5 {[%clk 0:01:59]} 13. Ne6 {[%clk 0:02:20]}  gxf5 {[%clk 0:01:56]} 14. Qh5+ {[%clk 0:02:11]}  Qf7 {[%clk 0:01:52]} 15. Ng7+ {[%clk 0:02:09]}  Kf8 {[%clk 0:01:51]} 16. Qxf7+ {[%clk 0:02:06]}  Kxf7 {[%clk 0:01:52]} 17. Nxf5 {[%clk 0:02:07]}  Ne7 {[%clk 0:01:41]} 18. O-O {[%clk 0:01:56]}  Rhf8 {[%clk 0:01:14]} 19. Na4 {[%clk 0:01:30]}  Ke6 {[%clk 0:00:35]} 20. Ng7+ {[%clk 0:01:29]}  Kd7 {[%clk 0:00:36]} 21. Ba3 {[%clk 0:01:29]}  c4 {[%clk 0:00:32]} 22. Nc5+ {[%clk 0:01:24]}  Bxc5 {[%clk 0:00:25]} 23. Bxc5 {[%clk 0:01:23]}  Rf7 {[%clk 0:00:25]} 24. Nh5 {[%clk 0:01:19]}  f5 {[%clk 0:00:21]} 25. Rf2 {[%clk 0:01:09]}  a5 {[%clk 0:00:16]} 26. Raf1 {[%clk 0:01:05]}  cxb3 {[%clk 0:00:15]} 27. axb3 {[%clk 0:01:05]}  a4 {[%clk 0:00:13]} 28. bxa4 {[%clk 0:01:04]}  Rxa4 {[%clk 0:00:13]} 29. Ng3 {[%clk 0:00:45]}  Ba6 {[%clk 0:00:12]} 30. Rc1 {[%clk 0:00:41]}  Bc8 {[%clk 0:00:08]} 31. h3 {[%clk 0:00:25]}  Ra5 {[%clk 0:00:04]} 32. Bb4 {[%clk 0:00:23]}  Rb5 {[%clk 0:00:04]} 33. Bxe7 {[%clk 0:00:21]}  Kxe7 {[%clk 0:00:05]} 34. Ne2 {[%clk 0:00:16]}  c5 {[%clk 0:00:02]} 35. Nc3 {[%clk 0:00:16]}  Rb7 {[%clk 0:00:01]} 36. Nxd5+ {[%clk 0:00:16]}  Kd6 {[%clk 0:00:02]} 37. Nc3 {[%clk 0:00:16]}  Be6 {[%clk 0:00:03]} 38. Ne2 {[%clk 0:00:15]}  Rg7 {[%clk 0:00:03]} 39. Kh2 {[%clk 0:00:14]}  Rb2 {[%clk 0:00:03]} 40. Nf4 {[%clk 0:00:14]}  Ra7 {[%clk 0:00:03]} 41. d3 {[%clk 0:00:12]}  exd3 {[%clk 0:00:03]} 42. Nxd3 {[%clk 0:00:13]}  Rb5 {[%clk 0:00:03]} 43. Rd1 {[%clk 0:00:13]}  Ke7 {[%clk 0:00:03]} 44. Nf4 {[%clk 0:00:13]}  Ra4 {[%clk 0:00:03]} 45. Rfd2 {[%clk 0:00:10]}  Re4 {[%clk 0:00:02]} 46. Nd5+ {[%clk 0:00:10]}  Bxd5 {[%clk 0:00:02]} 47. Rxd5 {[%clk 0:00:11]}  Rxe3 {[%clk 0:00:02]} 48. Rxf5 {[%clk 0:00:11]}  Re2 {[%clk 0:00:03]} 49. c4 {[%clk 0:00:09]}  Rbb2 {[%clk 0:00:03]} 50. Rg1 {[%clk 0:00:08]}  Kd6 {[%clk 0:00:03]} 51. Rd5+ {[%clk 0:00:08]}  Kc6 {[%clk 0:00:04]} 52. Rh5 {[%clk 0:00:09]}  Rbc2 {[%clk 0:00:03]} 53. Rh6+ {[%clk 0:00:09]}  Kc7 {[%clk 0:00:03]} 54. Rxh7+ {[%clk 0:00:09]}  Kd6 {[%clk 0:00:03]} 55. Rh4 {[%clk 0:00:08]}  Red2 {[%clk 0:00:02]} 56. Rg4 {[%clk 0:00:06]}  Rd4 {[%clk 0:00:02]} 57. Rg6+ {[%clk 0:00:06]}  Ke5 {[%clk 0:00:02]} 58. Rg5+ {[%clk 0:00:05]}  Kd6 {[%clk 0:00:02]} 59. Rf1 {[%clk 0:00:05]}  Rcxc4 {[%clk 0:00:02]} 60. Rf6+ {[%clk 0:00:05]}  Kc7 {[%clk 0:00:03]} 61. g4 {[%clk 0:00:03]}  Rd3 {[%clk 0:00:03]} 62. Rf2 {[%clk 0:00:03]}  Rcc3 {[%clk 0:00:03]} 63. Rh5 {[%clk 0:00:03]}  c4 {[%clk 0:00:03]} 64. g5 {[%clk 0:00:04]}  Rf3 {[%clk 0:00:03]} 65. Rxf3 {[%clk 0:00:03]}  Rxf3 {[%clk 0:00:04]} 66. g6 {[%clk 0:00:04]}  Rf8 {[%clk 0:00:04]} 67. Rc5+ {[%clk 0:00:03]}  Kd6 {[%clk 0:00:04]} 68. Rxc4 {[%clk 0:00:04]}  Ke5 {[%clk 0:00:04]} 69. Rg4 {[%clk 0:00:04]}  Kf6 {[%clk 0:00:05]} 70. Kg3 {[%clk 0:00:03]}  Kg7 {[%clk 0:00:05]} 71. Kh4 {[%clk 0:00:03]}  Rh8+ {[%clk 0:00:04]} 72. Kg3 {[%clk 0:00:03]}  Rh6 {[%clk 0:00:05]} 73. h4 {[%clk 0:00:03]}  Rxg6 {[%clk 0:00:05]} 74. Rxg6+ {[%clk 0:00:04]}  Kxg6 {[%clk 0:00:06]} 75. Kg4 {[%clk 0:00:05]}  Kh6 {[%clk 0:00:07]} 76. h5 {[%clk 0:00:06]}  Kh7 {[%clk 0:00:07]} 77. h6 {[%clk 0:00:06]}  Kh8 {[%clk 0:00:08]} 78. h7 {[%clk 0:00:06]}  Kxh7 {[%clk 0:00:09]} 1/2-1/2


[Site "https://www.chess.com"]

[Event "Titled Tuesday Blitz March 22 Late 2022"]
[White "Atanejhad, Sahebali"]
[Black "Golubev, Mikhail"]
[WhiteFideId "12506664"]
[BlackFideId "14100983"]
[WhiteElo "1977"]
[BlackElo "2374"]
[Result "1-0"]
[Round "07"]
[TimeControl "180+1"]
[Date "2022.03.22"]
[WhiteClock "0:00:04"]
[BlackClock "0:00:02"]

1. d4 {[%clk 0:03:00]}  Nf6 {[%clk 0:02:59]} 2. c4 {[%clk 0:03:01]}  g6 {[%clk 0:02:58]} 3. Nf3 {[%clk 0:03:01]}  Bg7 {[%clk 0:02:58]} 4. Nc3 {[%clk 0:03:02]}  O-O {[%clk 0:02:59]} 5. e4 {[%clk 0:03:02]}  d6 {[%clk 0:02:59]} 6. Be2 {[%clk 0:03:02]}  e5 {[%clk 0:02:59]} 7. O-O {[%clk 0:03:03]}  Nc6 {[%clk 0:02:59]} 8. d5 {[%clk 0:03:03]}  Ne7 {[%clk 0:02:59]} 9. Ne1 {[%clk 0:03:04]}  Ne8 {[%clk 0:02:57]} 10. Be3 {[%clk 0:03:04]}  f5 {[%clk 0:02:57]} 11. f3 {[%clk 0:03:04]}  f4 {[%clk 0:02:58]} 12. Bf2 {[%clk 0:03:05]}  g5 {[%clk 0:02:59]} 13. c5 {[%clk 0:03:05]}  Ng6 {[%clk 0:02:59]} 14. a4 {[%clk 0:03:05]}  h5 {[%clk 0:02:54]} 15. a5 {[%clk 0:03:04]}  Rf7 {[%clk 0:02:46]} 16. cxd6 {[%clk 0:03:01]}  Nxd6 {[%clk 0:02:39]} 17. Rc1 {[%clk 0:02:54]}  Nf8 {[%clk 0:02:35]} 18. Na4 {[%clk 0:02:45]}  Bh6 {[%clk 0:02:32]} 19. Nc5 {[%clk 0:02:43]}  g4 {[%clk 0:02:32]} 20. fxg4 {[%clk 0:02:37]}  f3 {[%clk 0:02:30]} 21. gxf3 {[%clk 0:02:27]}  Bxc1 {[%clk 0:02:04]} 22. Qxc1 {[%clk 0:02:28]}  hxg4 {[%clk 0:02:04]} 23. Kh1 {[%clk 0:02:19]}  Ng6 {[%clk 0:01:48]} 24. Ne6 {[%clk 0:01:46]}  Bxe6 {[%clk 0:01:46]} 25. dxe6 {[%clk 0:01:47]}  Rg7 {[%clk 0:01:43]} 26. fxg4 {[%clk 0:01:18]}  Nf4 {[%clk 0:01:33]} 27. Bf3 {[%clk 0:01:15]}  Qe7 {[%clk 0:01:18]} 28. Nc2 {[%clk 0:00:58]}  Qxe6 {[%clk 0:01:07]} 29. Ne3 {[%clk 0:00:57]}  Nd3 {[%clk 0:01:02]} 30. Qd2 {[%clk 0:00:56]}  Nxf2+ {[%clk 0:01:02]} 31. Qxf2 {[%clk 0:00:56]}  Qf6 {[%clk 0:00:22]} 32. Nf5 {[%clk 0:00:49]}  Nxf5 {[%clk 0:00:22]} 33. exf5 {[%clk 0:00:49]}  c6 {[%clk 0:00:22]} 34. h3 {[%clk 0:00:39]}  Rd8 {[%clk 0:00:21]} 35. Qxa7 {[%clk 0:00:33]}  e4 {[%clk 0:00:21]} 36. Bxe4 {[%clk 0:00:30]}  Qxb2 {[%clk 0:00:20]} 37. Bg2 {[%clk 0:00:22]}  Rd2 {[%clk 0:00:17]} 38. Qb8+ {[%clk 0:00:22]}  Kh7 {[%clk 0:00:18]} 39. Qg3 {[%clk 0:00:21]}  Qf6 {[%clk 0:00:12]} 40. Re1 {[%clk 0:00:14]}  Rgd7 {[%clk 0:00:11]} 41. Re6 {[%clk 0:00:13]}  Qg5 {[%clk 0:00:11]} 42. Rg6 {[%clk 0:00:12]}  Rd1+ {[%clk 0:00:11]} 43. Kh2 {[%clk 0:00:12]}  Qe7 {[%clk 0:00:07]} 44. g5 {[%clk 0:00:11]}  R7d4 {[%clk 0:00:05]} 45. Rh6+ {[%clk 0:00:08]}  Kg8 {[%clk 0:00:05]} 46. Rg6+ {[%clk 0:00:08]}  Kh7 {[%clk 0:00:05]} 47. Re6 {[%clk 0:00:05]}  Qb4 {[%clk 0:00:03]} 48. g6+ {[%clk 0:00:05]}  Kg8 {[%clk 0:00:01]} 49. Re8+ {[%clk 0:00:04]}  Kg7 {[%clk 0:00:02]} 50. Qe5+ {[%clk 0:00:04]} 1-0


[Site "https://www.chess.com"]

[Event "Titled Tuesday Blitz March 22 Late 2022"]
[White "Avazkhonov, Alikhon"]
[Black "Clawitter, Craig"]
[WhiteFideId "14208504"]
[BlackFideId "2023105"]
[WhiteElo "1739"]
[BlackElo "2214"]
[Result "0-1"]
[Round "07"]
[TimeControl "180+1"]
[Date "2022.03.22"]
[WhiteClock "0:00:04"]
[BlackClock "0:00:07"]

1. e4 {[%clk 0:03:00]}  e6 {[%clk 0:03:00]} 2. d4 {[%clk 0:03:00]}  d5 {[%clk 0:03:00]} 3. Nd2 {[%clk 0:03:00]}  Be7 {[%clk 0:03:00]} 4. e5 {[%clk 0:03:00]}  c5 {[%clk 0:03:00]} 5. c3 {[%clk 0:03:00]}  Nc6 {[%clk 0:02:59]} 6. Ngf3 {[%clk 0:02:45]}  Nh6 {[%clk 0:02:57]} 7. Bd3 {[%clk 0:02:45]}  cxd4 {[%clk 0:02:50]} 8. cxd4 {[%clk 0:02:44]}  Nf5 {[%clk 0:02:50]} 9. Bxf5 {[%clk 0:02:37]}  exf5 {[%clk 0:02:50]} 10. O-O {[%clk 0:02:37]}  O-O {[%clk 0:02:50]} 11. a3 {[%clk 0:02:37]}  a5 {[%clk 0:02:47]} 12. b3 {[%clk 0:02:35]}  Be6 {[%clk 0:02:45]} 13. Bb2 {[%clk 0:02:35]}  Kh8 {[%clk 0:02:36]} 14. Ne1 {[%clk 0:02:34]}  f4 {[%clk 0:02:32]} 15. Nd3 {[%clk 0:02:34]}  g5 {[%clk 0:02:29]} 16. Qh5 {[%clk 0:01:54]}  Bf5 {[%clk 0:02:18]} 17. Nxf4 {[%clk 0:01:51]}  Rg8 {[%clk 0:02:02]} 18. Ne2 {[%clk 0:01:21]}  Rg6 {[%clk 0:01:39]} 19. Ng3 {[%clk 0:00:56]}  Bd3 {[%clk 0:01:34]} 20. Rfe1 {[%clk 0:00:52]}  Qf8 {[%clk 0:01:28]} 21. Qf3 {[%clk 0:00:51]}  Ba6 {[%clk 0:01:10]} 22. h3 {[%clk 0:00:50]}  g4 {[%clk 0:01:04]} 23. hxg4 {[%clk 0:00:49]}  Qg7 {[%clk 0:01:04]} 24. Nf5 {[%clk 0:00:48]}  Qg8 {[%clk 0:01:01]} 25. Rac1 {[%clk 0:00:45]}  Bg5 {[%clk 0:00:33]} 26. Ne3 {[%clk 0:00:33]}  Bxe3 {[%clk 0:00:32]} 27. fxe3 {[%clk 0:00:34]}  Rxg4 {[%clk 0:00:31]} 28. Qxd5 {[%clk 0:00:32]}  Qg6 {[%clk 0:00:11]} 29. Rf1 {[%clk 0:00:09]}  Bxf1 {[%clk 0:00:11]} 30. Rxf1 {[%clk 0:00:10]}  Rd8 {[%clk 0:00:10]} 31. Qf3 {[%clk 0:00:09]}  Rg3 {[%clk 0:00:10]} 32. Qf2 {[%clk 0:00:08]}  Ne7 {[%clk 0:00:09]} 33. e4 {[%clk 0:00:04]}  Rg8 {[%clk 0:00:07]} 0-1


[Site "https://www.chess.com"]